bitfinex-derivatives/quotes_ETHF0:USTF0_20251001
["timestamp","ask_amount","ask_price","bid_price","bid_amount"]
[1759325026569,1.36691,4296.4,4296.3,1.1715]
[1759325028967,0.4187,4296.6,4296.3,1.59022]
[1759325029171,0.4187,4296.6,4296.5,1.0956]
[1759325029467,3.6141,4297.0,4296.6,0.5153]
[1759325029674,3.8922,4297.0,4296.9,0.5153]
[1759325029874,3.8922,4297.0,4296.9,0.9325]
[1759325030077,4.31085,4297.0,4296.9,0.9325]
[1759325030972,3.2078,4297.0,4296.9,1.35116]
[1759325031468,3.2078,4297.0,4296.9,1.97759193]
[1759325032273,3.2078,4297.0,4296.9,2.21659193]
[1759325032969,3.2078,4297.0,4296.9,1.59016]
[1759325033975,3.62645,4297.0,4296.9,1.59016]
[1759325034876,0.2481,4297.2,4297.1,1.31433]
[1759325035577,0.66673,4297.2,4297.1,1.31433]
[1759325035777,1.31213,4297.2,4297.1,0.8957]
[1759325036376,1.31213,4297.2,4297.1,1.31434]
[1759325036679,0.41863,4297.2,4297.1,1.55334]
[1759325036974,1.05903,4297.2,4297.1,1.1347]
[1759325037176,1.05903,4297.2,4297.1,1.55334]
[1759325038078,1.31213,4297.2,4297.1,0.8957]
[1759325038280,1.31213,4297.2,4297.1,0.488]
[1759325038578,1.31213,4297.2,4297.1,0.239]
[1759325039076,1.31213,4297.2,4297.1,0.488]
[1759325039277,1.31213,4297.2,4297.1,1.28774]
[1759325039577,0.8935,4297.2,4297.1,1.55334]
[1759325039976,0.8935,4297.2,4297.1,2.38950805]
[1759325040167,0.8935,4297.2,4297.1,2.15050805]
[1759325040372,0.8935,4297.2,4297.1,2.38950805]
[1759325043383,0.8935,4297.2,4297.1,1.55334]
[1759325043878,0.6997,4297.5,4297.4,1.31432]
[1759325044078,1.37141,4297.5,4297.4,1.1337]
[1759325044281,1.46771,4297.5,4297.4,0.487]
[1759325044675,1.0491,4297.5,4297.4,0.90562]
[1759325045181,1.0491,4297.5,4297.4,1.28672]
[1759325045382,1.0491,4297.5,4297.4,1.55232]
[1759325045779,1.0491,4297.5,4297.4,1.31432]
[1759325045983,1.0491,4297.5,4297.4,1.55232]
[1759325046381,1.0491,4297.5,4297.4,2.38649444]
[1759325047181,1.0491,4297.5,4297.4,1.76739444]
[1759325047480,1.0491,4297.5,4297.4,2.38649444]
[1759325047481,0.8935,4297.5,4297.4,2.38649444]
[1759325048583,0.3074,4297.8,4297.7,0.41858]
[1759325048782,0.6997,4297.8,4297.7,1.94076136]
[1759325048978,0.9528,4297.8,4297.7,1.55228]
[1759325049376,0.0593,4297.8,4297.7,1.55228]
[1759325049578,0.0593,4297.8,4297.7,2.38758848]
[1759325049977,0.0593,4297.8,4297.7,1.55228]
[1759325050176,0.3074,4297.8,4297.7,1.55228]
[1759325050583,0.6997,4297.8,4297.7,1.55228]
[1759325050777,1.31207,4297.8,4297.7,0.8957]
[1759325050984,1.31207,4297.8,4297.7,0.66758]
[1759325051382,0.8935,4297.8,4297.7,0.66758]
[1759325051886,1.31207,4297.8,4297.7,1.08405584]
[1759325052084,1.31207,4297.8,4297.7,0.249]
[1759325052486,0.8935,4297.8,4297.7,0.66758]
[1759325052891,0.8935,4297.8,4297.7,2.14933584]
[1759325053292,0.2481,4298.0,4297.9,0.5146]
[1759325053489,0.2481,4298.0,4297.9,1.55226]
[1759325053785,0.6404,4298.0,4297.9,2.38731584]
[1759325053985,0.6404,4298.0,4297.9,1.55226]
[1759325054383,0.06127182,4298.2,4298.1,0.41855]
[1759325054586,0.30937182,4298.2,4298.1,2.17838701]
[1759325054785,0.70167182,4298.2,4298.1,2.17838701]
[1759325055386,0.95477182,4298.2,4298.1,1.55225]
[1759325055586,0.06127182,4298.2,4298.1,1.55225]
[1759325055786,0.06127182,4298.2,4298.1,2.38730584]
[1759325056186,0.06127182,4298.2,4298.1,1.55225]
[1759325056395,0.06127182,4298.2,4298.1,2.80632206]
[1759325056687,0.00197182,4298.2,4298.1,2.80632206]
[1759325057488,4.67536,4299.0,4298.9,0.5146]
[1759325057787,4.1013,4299.0,4298.9,1.31417]
[1759325057991,0.8935,4299.0,4298.9,1.55217]
[1759325058386,0.89564314,4299.0,4298.9,1.55217]
[1759325058785,0.25024314,4299.0,4298.9,2.17822389]
[1759325058988,0.00214314,4299.0,4298.9,2.38690852]
[1759325059188,0.25024314,4299.0,4298.9,2.38690852]
[1759325059691,0.00214314,4299.0,4298.9,2.38690852]
[1759325061598,0.00214314,4299.0,4298.9,1.55217]
[1759325063296,0.42060314,4299.0,4298.9,1.1337]
[1759325063495,0.67280314,4299.0,4298.9,1.1337]
[1759325063693,1.04260314,4299.0,4298.9,0.8957]
[1759325063894,1.29400314,4299.0,4298.9,0.8957]
[1759325064091,1.29400314,4299.0,4298.9,1.1337]
[1759325064393,1.45320314,4299.0,4298.9,1.1337]
[1759325065796,1.45320314,4299.0,4298.9,0.8957]
[1759325065998,1.45320314,4299.0,4298.9,1.1337]
[1759325066191,1.45320314,4299.0,4298.9,0.487]
[1759325066497,1.45320314,4299.0,4298.7,0.1861]
[1759325066498,0.92148,4298.8,4298.7,1.3001193]
[1759325066696,1.29128,4298.8,4298.7,1.9362193]
[1759325066893,1.03988,4298.8,4298.7,1.7501193]
[1759325068700,1.29128,4298.8,4298.7,1.7501193]
[1759325068899,1.29128,4298.8,4298.7,1.1401193]
[1759325069098,1.29128,4298.8,4298.7,0.4888]
[1759325069304,1.29128,4298.8,4298.7,1.7501193]
[1759325069807,0.41849,4298.7,4298.6,0.6252193]
[1759325070005,1.2913,4298.6,4298.5,0.1861]
[1759325070497,6.2913,4298.6,4298.5,0.1861]
[1759325070699,6.2913,4298.6,4297.9,0.83473852]
[1759325070700,0.57776,4298.0,4297.9,0.6252193]
[1759325071007,0.8728,4297.9,4297.8,0.2508]
[1759325072002,0.41856,4298.0,4297.8,0.8869]
[1759325072208,0.8728,4297.9,4297.8,0.5149]
[1759325073006,0.8728,4297.9,4297.8,0.8869]
[1759325073311,0.8728,4297.9,4297.8,1.1249]
[1759325073711,0.41856,4298.0,4297.8,1.1249]
[1759325074009,0.41856,4298.0,4297.9,0.8869]
[1759325074208,0.67016,4298.0,4297.9,0.8869]
[1759325074404,1.03996,4298.0,4297.9,0.8869]
[1759325075699,1.29136,4298.0,4297.9,0.8869]
[1759325076207,1.29136,4298.0,4297.9,1.1249]
[1759325076406,1.29136,4298.0,4297.9,1.7501193]
[1759325077409,0.67016,4298.0,4297.9,1.7501193]
[1759325077611,0.67016,4298.0,4297.9,1.1249]
[1759325078008,0.41856,4298.0,4297.9,1.1249]
[1759325078613,1.2913,4298.6,4298.5,1.0453]
[1759325078911,1.2913,4298.6,4298.5,1.90911581]
[1759325079113,1.2913,4298.6,4298.5,0.4888]
[1759325079311,1.2913,4298.6,4298.5,1.11461581]
[1759325079515,1.08071,4298.5,4298.4,0.87661581]
[1759325079708,1.45051,4298.5,4298.4,1.48661581]
[1759325080110,1.45051,4298.5,4298.4,1.24861581]
[1759325080317,1.45051,4298.5,4298.4,0.8608]
[1759325080513,0.92153,4298.3,4298.2,0.83442108]
[1759325080815,1.29135,4298.1,4298.0,1.08522108]
[1759325081116,1.29135,4298.1,4298.0,1.2833]
[1759325082324,1.29135,4298.1,4298.0,1.1249]
[1759325083520,1.29137,4297.9,4297.8,0.83442108]
[1759325083719,1.29137,4297.9,4297.8,1.95932108]
[1759325084413,1.29137,4297.9,4297.8,2.37790108]
[1759325084614,1.03992,4298.4,4298.3,0.8869]
[1759325084815,1.29132,4298.4,4298.3,0.8869]
[1759325085725,1.29132,4298.4,4298.3,1.51292198]
[1759325090322,1.29132,4298.4,4298.3,0.62602198]
[1759325090521,1.29133,4298.3,4298.2,0.62602198]
[1759325090728,0.1592,4298.5,4297.9,1.07269598]
[1759325090729,0.8728,4298.2,4298.0,0.62602198]
[1759325091027,0.8728,4298.1,4298.0,0.62602198]
[1759325091527,1.29135,4298.1,4298.0,0.62602198]
[1759325092122,0.57776,4298.0,4297.9,0.62602198]
[1759325092327,1.45056,4298.0,4297.9,0.62602198]
[1759325092829,1.45056,4298.0,4297.9,1.24882198]
[1759325093026,1.45056,4298.0,4297.9,1.51292198]
[1759325093330,1.29136,4298.0,4297.9,0.8869]
[1759325095431,1.35066,4298.0,4297.9,0.8869]
[1759325095928,1.51066,4298.0,4297.9,0.8869]
[1759325096331,1.35066,4298.0,4297.9,0.8869]
[1759325098431,0.47786,4298.0,4297.9,0.8869]
[1759325098629,1.37146,4298.0,4297.9,0.8869]
[1759325098927,1.53146,4298.0,4297.9,1.72309141]
[1759325099228,1.53146,4298.0,4297.9,1.35109141]
[1759325099528,1.37146,4298.0,4297.9,1.96169141]
[1759325100127,1.37146,4298.0,4297.9,1.72369141]
[1759325100324,1.53146,4298.0,4297.9,1.08731433]
[1759325100522,1.11336,4298.0,4297.9,0.8663]
[1759325100722,0.47786,4298.0,4297.9,2.11840778]
[1759325100933,0.47786,4298.0,4297.9,0.8663]
[1759325101433,1.37146,4298.0,4297.9,1.1043]
[1759325101626,0.47786,4298.0,4297.9,1.1043]
[1759325102027,0.0593,4298.0,4297.9,1.52287]
[1759325102428,0.47786,4298.0,4297.9,1.1043]
[1759325102734,1.11336,4298.0,4297.9,0.8663]
[1759325102933,1.11336,4298.0,4297.9,1.1043]
[1759325103139,0.0593,4298.0,4297.9,1.1043]
[1759325103433,1.37146,4298.0,4297.9,1.1043]
[1759325103828,1.53146,4298.0,4297.9,2.12103273]
[1759325104028,1.53146,4298.0,4297.9,0.238]
[1759325104224,1.53146,4298.0,4297.9,1.074545]
[1759325104627,1.31217,4297.9,4297.7,0.836545]
[1759325104829,1.31218,4297.7,4297.6,0.836545]
[1759325105133,1.31219,4297.6,4297.5,1.316645]
[1759325105523,1.31219,4297.6,4297.5,1.689245]
[1759325105729,1.31219,4297.6,4297.5,1.932145]
[1759325107135,0.41859,4297.6,4297.5,1.849645]
[1759325107337,0.41859,4297.6,4297.5,5.71363273]
[1759325107536,0.41859,4297.6,4297.5,1.0131]
[1759325107737,1.31219,4297.6,4297.5,1.93179063]
[1759325107934,1.31219,4297.6,4297.5,1.69379063]
[1759325108130,1.31219,4297.6,4297.5,1.93179063]
[1759325108331,1.47221,4297.5,4297.4,0.83619063]
[1759325108633,0.6355,4297.4,4297.3,0.83619063]
[1759325108842,0.8936,4297.4,4297.3,0.83619063]
[1759325109026,0.93133,4297.3,4297.1,0.83619063]
[1759325109233,0.6355,4297.2,4297.1,1.69379063]
[1759325109634,0.8936,4297.2,4297.1,1.69379063]
[1759325109829,0.6355,4297.2,4297.1,1.69379063]
[1759325110429,0.8936,4297.2,4297.1,1.69379063]
[1759325110635,0.8936,4297.2,4297.1,0.2421]
[1759325110835,1.31225,4297.1,4297.0,1.02229063]
[1759325111130,1.31225,4297.1,4297.0,0.83619063]
[1759325111326,1.31225,4297.1,4297.0,1.68889063]
[1759325111539,1.31225,4297.1,4297.0,1.07829063]
[1759325112334,1.31225,4297.1,4297.0,1.45089063]
[1759325113241,1.31225,4297.1,4297.0,0.6147]
[1759325113543,1.31225,4297.1,4297.0,1.45089063]
[1759325113735,1.31225,4297.1,4297.0,1.07829063]
[1759325113939,1.31225,4297.1,4297.0,0.83619063]
[1759325114540,1.0536,4297.0,4296.9,0.83619063]
[1759325114937,0.93138,4296.7,4296.5,1.02229063]
[1759325115240,0.8936,4296.6,4296.5,1.02229063]
[1759325115440,0.8936,4296.6,4296.5,1.26439063]
[1759325115638,1.31229,4296.6,4296.5,1.63699063]
[1759325116242,1.31229,4296.6,4296.5,0.8008]
[1759325116647,1.31229,4296.6,4296.5,0.4282]
[1759325117144,1.31229,4296.6,4296.5,0.2421]
[1759325117641,1.4723,4296.5,4296.4,1.31629063]
[1759325117832,1.0542,4296.5,4296.4,1.93179063]
[1759325118137,1.0542,4296.5,4296.4,1.0956]
[1759325118345,0.4187,4296.5,4296.4,1.0956]
[1759325118744,0.6733,4296.5,4296.4,1.0956]
[1759325118944,1.0542,4296.5,4296.4,1.0956]
[1759325119647,1.3123,4296.5,4296.4,1.0956]
[1759325121752,1.0542,4296.5,4296.4,1.0956]
[1759325123242,1.3007,4296.5,4296.4,1.0956]
[1759325123746,1.4517,4296.5,4296.4,1.93030788]
[1759325124249,1.4517,4296.5,4296.4,1.0956]
[1759325124548,1.4517,4296.5,4296.4,0.573]
[1759325124751,1.4517,4296.5,4296.4,1.40770281]
[1759325125757,1.4517,4296.5,4296.4,0.573]
[1759325126446,1.4517,4296.5,4296.4,1.78605001]
[1759325126646,1.4517,4296.5,4296.4,0.9513]
[1759325127151,1.4517,4296.5,4296.4,1.78603231]
[1759325128348,1.4517,4296.5,4296.4,0.9513]
[1759325128849,1.4517,4296.5,4296.4,1.37001]
[1759325129348,1.3007,4296.5,4296.4,1.37001]
[1759325129749,1.3007,4296.5,4296.4,0.9513]
[1759325130047,1.3007,4296.5,4296.4,1.37001]
[1759325130849,1.3007,4296.5,4296.4,0.9513]
[1759325131050,1.4517,4296.5,4296.4,0.573]
[1759325131252,1.4517,4296.5,4296.4,0.335]
[1759325131552,1.4517,4296.5,4296.4,0.3301]
[1759325132253,1.4517,4296.5,4296.4,1.36681]
[1759325133257,1.4517,4296.5,4296.4,2.00524273]
[1759325133455,1.4517,4296.5,4296.4,2.24324273]
[1759325133645,1.4517,4296.5,4296.4,1.82453273]
[1759325133950,1.4517,4296.5,4296.4,2.24324273]
[1759325134248,1.4517,4296.5,4296.4,2.00524273]
[1759325134447,1.4517,4296.5,4296.4,1.82453273]
[1759325134953,1.4517,4296.5,4296.4,1.25473273]
[1759325135450,1.4517,4296.5,4296.4,1.67344273]
[1759325135952,1.4517,4296.5,4296.4,2.54684273]
[1759325136339,1.511,4296.5,4296.4,0.4951]
[1759325136544,1.511,4296.5,4296.4,0.4934]
[1759325136745,1.511,4296.5,4296.4,0.238]
[1759325138255,0.91501,4296.4,4296.3,1.25471048]
[1759325138447,1.29581,4296.4,4296.3,1.49271048]
[1759325139156,1.29581,4296.4,4296.3,1.74811048]
[1759325139656,0.91502,4296.3,4296.2,1.49486587]
[1759325139953,1.29582,4296.3,4296.2,1.49486587]
[1759325140154,1.29582,4296.3,4296.2,1.75026587]
[1759325140452,0.6251,4296.3,4296.2,2.78779132]
[1759325140748,1.1108,4296.5,4296.4,0.8734]
[1759325140954,1.5061,4296.5,4296.4,1.75053741]
[1759325141353,1.5061,4296.5,4296.4,2.36683741]
[1759325141654,1.5061,4296.5,4296.4,0.8734]
[1759325141954,1.5061,4296.5,4296.4,2.12883741]
[1759325144861,1.0874,4296.5,4296.4,2.54754741]
[1759325145055,1.0874,4296.5,4296.4,1.29211]
[1759325145758,1.0874,4296.5,4296.4,0.91381]
[1759325147158,1.0874,4296.5,4296.4,1.29211]
[1759325147556,0.4401,4296.5,4296.4,2.54754741]
[1759325147761,0.0593,4296.5,4296.4,2.54754741]
[1759325148154,0.0593,4296.5,4296.4,1.29211]
[1759325148355,0.0593,4296.5,4296.4,9.49991]
[1759325150759,0.0593,4296.5,4296.4,4.73791]
[1759325155460,0.9141,4296.5,4296.4,4.49991]
[1759325155654,0.9141,4296.5,4296.4,1.53011]
[1759325156155,0.6657,4296.5,4296.4,1.53011]
[1759325156351,0.6657,4296.5,4296.4,1.29211]
[1759325156558,1.3328,4296.5,4296.4,1.53011]
[1759325156759,0.9141,4296.5,4296.4,1.53011]
[1759325157367,1.478,4296.5,4296.4,1.53011]
[1759325157868,1.478,4296.5,4296.4,1.1114]
[1759325158367,1.0593,4296.5,4296.4,1.1114]
[1759325158568,1.478,4296.5,4296.4,1.1114]
[1759325160166,1.478,4296.5,4296.4,0.8734]
[1759325160364,1.478,4296.5,4296.4,1.1114]
[1759325160564,1.0593,4296.5,4296.4,1.1114]
[1759325160759,1.3328,4296.5,4296.4,1.53011]
[1759325160960,0.0593,4296.5,4296.4,1.53011]
[1759325161466,0.0593,4296.5,4296.4,4.73791]
[1759325161669,1.0782,4296.5,4296.4,4.3192]
[1759325161862,1.0782,4296.5,4296.4,1.1114]
[1759325162069,0.7238,4296.5,4296.4,1.1114]
[1759325162568,1.0782,4296.5,4296.4,1.1114]
[1759325162869,1.0782,4296.5,4296.4,0.8734]
[1759325163070,1.0782,4296.5,4296.4,1.1114]
[1759325164470,1.0782,4296.5,4296.4,0.8734]
[1759325164668,1.0782,4296.5,4296.4,1.1114]
[1759325165458,0.478,4296.5,4296.4,1.1114]
[1759325166863,0.8324,4296.5,4296.4,1.1114]
[1759325167169,1.0782,4296.5,4296.4,1.1114]
[1759325167868,1.0782,4296.5,4296.4,0.8734]
[1759325168063,0.8324,4296.5,4296.4,1.1114]
[1759325168367,0.478,4296.5,4296.4,1.1114]
[1759325169175,1.0782,4296.5,4296.4,1.1114]
[1759325169375,0.478,4296.5,4296.4,1.1114]
[1759325169970,0.0593,4296.5,4296.4,1.53011]
[1759325170164,0.478,4296.5,4296.4,3.19731297]
[1759325170776,0.0593,4296.5,4296.4,3.19731297]
[1759325170967,0.478,4296.5,4296.4,43.99731297]
[1759325171377,0.0593,4296.5,4296.4,43.99731297]
[1759325171764,3.2078,4297.9,4297.7,0.2556]
[1759325172068,0.41853,4298.3,4298.2,0.8827]
[1759325172269,3.35514314,4299.0,4298.6,0.4973]
[1759325172472,1.01867,4298.9,4298.8,1.71821416]
[1759325172671,1.26707,4298.9,4298.8,1.95621416]
[1759325173368,1.26707,4298.9,4298.8,1.1207]
[1759325174276,1.26707,4298.9,4298.8,1.74607054]
[1759325175272,0.00214314,4299.0,4298.9,1.30117]
[1759325175869,1.26707,4298.9,4298.8,0.62498185]
[1759325176071,0.4185,4298.6,4298.4,0.62498185]
[1759325176265,1.26712,4298.4,4298.2,0.62498185]
[1759325176570,0.91274,4298.2,4298.0,0.62498185]
[1759325176779,0.4942,4297.9,4297.8,0.62498185]
[1759325176979,1.0866,4297.9,4297.8,0.62498185]
[1759325177173,0.41859,4297.6,4297.5,0.62498185]
[1759325177376,0.9938,4297.5,4297.4,3.83278185]
[1759325177679,0.9938,4297.5,4297.4,0.62498185]
[1759325177975,1.058,4297.5,4297.4,0.62502241]
[1759325178681,1.4124,4297.5,4297.4,0.62502241]
[1759325179081,1.4124,4297.5,4297.4,0.88062241]
[1759325179282,1.4124,4297.5,4297.4,0.8827]
[1759325180179,1.4124,4297.5,4297.4,1.50766594]
[1759325180379,1.4124,4297.5,4297.4,0.4973]
[1759325180675,1.28142,4297.3,4297.2,1.07281416]
[1759325180873,1.28142,4297.3,4297.2,0.2373]
[1759325182979,1.28142,4297.3,4297.2,0.4743]
[1759325183576,1.28142,4297.3,4297.2,0.7288]
[1759325183879,1.28142,4297.3,4297.2,1.35387298]
[1759325185378,0.1412,4297.0,4296.5,0.83551416]
[1759325185677,1.28362,4296.3,4296.2,0.00215539]
[1759325185870,1.52062,4296.3,4296.2,0.00215539]
[1759325186072,1.28362,4296.3,4296.2,0.84665539]
[1759325186272,0.90842,4296.3,4296.2,0.84665539]
[1759325186472,0.2435,4296.3,4296.2,0.84665539]
[1759325186777,0.8649,4296.3,4296.2,1.08365539]
[1759325186976,0.2435,4296.3,4296.2,1.08365539]
[1759325187379,0.41872,4296.4,4296.2,1.08365539]
[1759325187583,0.41872,4296.4,4296.3,0.8445]
[1759325187776,1.28362,4296.4,4296.3,1.0815]
[1759325188685,1.28362,4296.4,4296.3,0.235]
[1759325189087,1.28362,4296.4,4296.3,0.8445]
[1759325189584,1.03742,4296.4,4296.3,0.8445]
[1759325189783,0.66222,4296.4,4296.3,0.8445]
[1759325190080,1.28362,4296.4,4296.3,0.8445]
[1759325190389,1.28362,4296.4,4296.3,0.472]
[1759325190577,0.8649,4296.3,4296.2,0.83375539]
[1759325190888,0.8649,4296.3,4296.2,1.08365539]
[1759325191380,0.8649,4296.3,4296.2,0.00215539]
[1759325192381,0.8649,4296.3,4296.2,0.23715539]
[1759325192582,0.8649,4296.3,4296.2,0.84665539]
[1759325192879,0.2435,4296.3,4296.2,0.84665539]
[1759325193077,0.8649,4296.3,4296.2,0.59675539]
[1759325193389,0.8649,4296.3,4296.2,0.23715539]
[1759325193587,0.8649,4296.3,4296.2,0.59675539]
[1759325193792,0.8649,4296.3,4296.2,0.84665539]
[1759325194291,0.41872,4296.4,4296.3,0.3596]
[1759325194589,1.28362,4296.4,4296.3,0.8445]
[1759325194791,0.2435,4296.4,4296.3,0.8445]
[1759325195085,1.03738,4296.8,4296.7,0.8445]
[1759325195284,1.28358,4296.8,4296.7,0.8445]
[1759325195477,0.90838,4296.8,4296.6,3.4448]
[1759325195683,0.6187,4296.7,4296.6,3.4448]
[1759325196687,0.8649,4296.7,4296.6,3.4448]
[1759325197281,0.3752,4296.7,4296.6,3.4448]
[1759325197486,0.5164,4297.0,4296.9,0.41866]
[1759325197691,0.3752,4297.4,4297.3,0.41862]
[1759325197883,0.3752,4297.4,4297.3,3.86342]
[1759325198886,0.3752,4297.8,4297.7,0.41858]
[1759325199088,0.3752,4297.8,4297.7,0.65558]
[1759325199384,0.8649,4297.8,4297.7,0.237]
[1759325199586,0.3752,4297.4,4297.3,4.46193416]
[1759325199897,0.8649,4297.4,4297.3,3.4448]
[1759325200291,0.3752,4297.4,4297.3,3.4448]
[1759325200486,0.3752,4297.4,4297.3,4.28031416]
[1759325200690,0.3752,4297.4,4297.3,9.28031416]
[1759325201787,0.3752,4297.4,4297.3,4.28031416]
[1759325202695,0.3752,4297.4,4297.3,1.07251416]
[1759325202992,0.3752,4297.4,4297.3,4.28031416]
[1759325203582,0.5164,4297.5,4297.4,0.41861]
[1759325204287,0.5164,4297.5,4297.4,1.25412416]
[1759325205488,0.7599,4297.5,4297.4,1.25412416]
[1759325206185,0.7599,4297.5,4297.4,1.49112416]
[1759325206380,0.7599,4297.5,4297.4,0.65561]
[1759325208995,1.0061,4297.5,4297.4,0.41861]
[1759325209292,0.41861,4297.4,4297.3,4.46010741]
[1759325209497,0.41861,4297.4,4297.3,3.4448]
[1759325209498,1.28351,4297.4,4297.3,3.4448]
[1759325209699,0.8649,4297.4,4297.3,3.86342]
[1759325210896,0.8649,4297.4,4297.3,4.69711741]
[1759325211096,0.3752,4297.4,4297.3,3.86342]
[1759325211291,0.1412,4297.5,4297.4,0.41861]
[1759325211500,0.3752,4297.5,4297.4,1.25225959]
[1759325211796,0.5164,4297.5,4297.4,0.41861]
[1759325212393,0.7599,4297.5,4297.4,0.41861]
[1759325215011,1.0061,4297.5,4297.4,0.41861]
[1759325217409,1.0061,4297.5,4297.4,0.65561]
[1759325218110,1.0061,4297.5,4297.4,0.41861]
[1759325218315,1.4247,4297.5,4297.4,0.237]
[1759325218505,0.90451,4297.4,4297.3,3.2078]
[1759325218705,1.26441,4297.4,4297.3,3.4448]
[1759325218906,0.8458,4297.4,4297.3,4.69715123]
[1759325219109,0.6146,4297.4,4297.3,3.86342]
[1759325219508,0.6146,4297.4,4297.3,5.11676696]
[1759325220207,0.8458,4297.4,4297.3,5.11676696]
[1759325220514,0.3599,4297.4,4297.3,5.11676696]
[1759325220706,0.6146,4297.4,4297.3,5.11676696]
[1759325221205,0.8458,4297.4,4297.3,5.11676696]
[1759325221402,0.8458,4297.4,4297.3,5.11457784]
[1759325221605,0.8458,4297.4,4297.3,3.62642]
[1759325221811,0.8458,4297.4,4297.3,5.11464127]
[1759325222312,0.8458,4297.4,4297.3,3.86342]
[1759325223511,0.8458,4297.4,4297.3,3.62642]
[1759325223713,0.8458,4297.4,4297.3,3.86342]
[1759325225713,1.26441,4297.4,4297.3,3.86342]
[1759325226318,0.8458,4297.4,4297.3,3.86342]
[1759325226617,0.3599,4297.4,4297.3,3.86342]
[1759325226916,0.3599,4297.4,4297.3,5.53695101]
[1759325227313,0.3599,4297.4,4297.3,3.86342]
[1759325227711,0.3599,4297.4,4297.3,3.62642]
[1759325227914,0.3599,4297.4,4297.3,3.86342]
[1759325228511,0.3599,4297.8,4297.7,0.41858]
[1759325228711,0.3599,4297.8,4297.7,0.65558]
[1759325228916,0.77847,4297.8,4297.7,0.65558]
[1759325229113,1.03317,4297.8,4297.7,0.65558]
[1759325229716,0.6146,4297.8,4297.7,0.65558]
[1759325230022,1.26437,4297.8,4297.7,0.65558]
[1759325231014,0.8458,4297.8,4297.7,0.65558]
[1759325233023,1.26437,4297.8,4297.7,0.65558]
[1759325233224,0.8458,4297.8,4297.7,0.65558]
[1759325233721,0.3599,4297.8,4297.7,0.65558]
[1759325233922,0.5051,4298.0,4297.9,0.41856]
[1759325234114,0.5051,4298.0,4297.9,3.86336]
[1759325234520,0.7558,4298.5,4298.4,0.41851]
[1759325234721,0.7558,4298.5,4298.4,0.65551]
[1759325235122,0.7558,4298.5,4298.4,3.86331]
[1759325235323,0.5011,4298.5,4298.4,3.86331]
[1759325235526,0.3599,4298.5,4298.4,5.53622218]
[1759325235726,0.3599,4298.5,4298.4,3.86331]
[1759325236633,0.39804314,4299.0,4298.9,0.66886]
[1759325236823,0.39804314,4299.0,4298.9,4.11366]
[1759325237428,0.39804314,4299.0,4298.9,5.36557437]
[1759325237730,0.14334314,4299.0,4298.9,4.11366]
[1759325237919,0.39804314,4299.0,4298.9,4.11366]
[1759325238526,0.75794314,4299.0,4298.9,4.11366]
[1759325239828,0.98914314,4299.0,4298.9,3.87666]
[1759325240133,0.98914314,4299.0,4298.9,4.11366]
[1759325240433,0.98914314,4299.0,4298.9,5.36383691]
[1759325240627,0.98914314,4299.0,4298.9,4.11366]
[1759325241233,0.98914314,4299.0,4298.9,3.87666]
[1759325241435,1.40759314,4299.0,4298.9,5.11306202]
[1759325241631,1.40759314,4299.0,4298.9,3.86326]
[1759325241823,0.98914314,4299.0,4298.9,3.86326]
[1759325242226,0.98914314,4299.0,4298.9,3.62626]
[1759325242528,0.50324314,4299.0,4298.9,4.14676]
[1759325242723,0.50324314,4299.0,4298.9,5.39656202]
[1759325242926,0.73474314,4299.0,4298.9,5.32906202]
[1759325243735,0.97514314,4299.0,4298.9,5.32906202]
[1759325243931,0.97514314,4299.0,4298.9,4.07926]
[1759325244631,0.73474314,4299.0,4298.9,4.07926]
[1759325246333,0.73504314,4299.0,4298.9,4.07926]
[1759325246833,0.96884314,4299.0,4298.9,4.07926]
[1759325247039,0.96884314,4299.0,4298.9,4.91175272]
[1759325250436,0.73504314,4299.0,4298.9,4.07926]
[1759325251034,0.73504314,4299.0,4298.9,4.91167262]
[1759325251235,0.73504314,4299.0,4298.9,4.07926]
[1759325251437,0.96884314,4299.0,4298.9,4.07926]
[1759325251944,0.96884314,4299.0,4298.9,4.69571392]
[1759325252639,0.96884314,4299.0,4298.9,4.45871392]
[1759325252841,0.96884314,4299.0,4298.9,4.80171392]
[1759325253838,1.38729314,4299.0,4298.9,4.45871392]
[1759325254043,1.38729314,4299.0,4298.9,3.2078]
[1759325254240,1.38729314,4299.0,4298.9,4.06945942]
[1759325254545,1.38729314,4299.0,4298.9,4.25091942]
[1759325254743,1.38729314,4299.0,4298.9,4.48791942]
[1759325255040,0.96884314,4299.0,4298.9,3.96926]
[1759325255541,6.38729314,4299.0,4298.9,3.2078]
[1759325255747,6.38729314,4299.0,4298.9,3.4448]
[1759325256339,6.38729314,4299.0,4298.9,3.2078]
[1759325256740,6.38729314,4299.0,4298.9,3.4448]
[1759325256941,6.38729314,4299.0,4298.9,0.8620166]
[1759325257248,1.22668,4298.7,4298.6,0.8620166]
[1759325257541,1.22668,4298.7,4298.6,0.6250166]
[1759325259036,1.22669,4298.6,4298.5,0.8111166]
[1759325259448,1.3644,4298.5,4298.4,0.237]
[1759325259851,1.22671,4298.4,4298.3,1.06945392]
[1759325260247,1.22671,4298.4,4298.3,0.83245392]
[1759325260442,0.1377,4298.5,4298.2,0.62599066]
[1759325260443,0.4656,4298.3,4298.2,0.62599066]
[1759325261051,0.8082,4298.3,4298.2,0.62599066]
[1759325261351,1.22672,4298.3,4298.2,0.62599066]
[1759325261541,1.22673,4298.2,4298.1,0.93845392]
[1759325262051,1.22673,4298.2,4298.1,1.06945392]
[1759325263050,1.22674,4298.1,4298.0,1.06945392]
[1759325263446,1.22674,4298.1,4298.0,1.17545392]
[1759325264348,1.22674,4298.1,4298.0,1.59400392]
[1759325264550,1.22674,4298.1,4298.0,0.86755]
[1759325265452,1.22674,4298.1,4298.0,1.0712507]
[1759325265857,1.22674,4298.1,4298.0,1.4898007]